{"text_format":"1","workbook":"xlsx","n_sheets":1,"sheets":["Prüfungsbericht"],"not_rendered":{"charts":0,"images":1,"macros":1,"external_links":0,"defined_names":2,"comments":1,"pivot_tables":0},"unopened":[],"bounds":{"document_bytes":16777216,"sheet_cells":100000,"rows_first":2000,"rows_last":500,"rows_between":2000,"halvings":0,"cell_chars":16384,"cell_head_chars":4096},"cells_cut":0,"cells_raw":0,"read":"whole","date_system":"1900"}

{"sheet":"Prüfungsbericht","index":0,"n_rows":45,"n_cols":16,"rows_kept":45,"cut":false,"hidden":false,"merged":[[1,0,1,1],[2,0,2,1],[39,0,39,1],[39,2,39,3],[3,5,3,6],[43,6,43,14],[41,2,41,3],[5,5,5,6],[5,2,5,4],[39,6,39,8],[5,7,5,14],[43,2,43,3]]}
[]
["Stellennummer:"]
["Berichtszeitraum:"]
[null,null,null,null,null,"Luftfahrt-Bundesamt"]
[]
[null,"Prüfung am: ","Geprüfte Personen:",null,null,"Verantwortlicher Sprachprüfer:",null,"                   Ergebnis:",null,null,null,null,null,null,null,"Extra:"]
[]
[null,"Datum","Name","Vorname ","geb.am","Name ","Prüfer-Nummer","EP 4","VP 4","nicht best.","EP 5","VP 5","nicht best.","EP 6","nicht best.","Online-Prüfung"]
[1]
[{"$f":"A9+1","v":2}]
[{"$f":"A10+1","v":3}]
[4]
[5]
[6]
[7]
[8]
[9]
[10]
[11]
[12]
[13]
[14]
[15]
[16]
[17]
[18]
[19]
[20]
[21]
[22]
[23]
[24]
[25]
["Ende"]
[]
[null,null,null,null,null,null,"Summe:",{"$f":"SUM(H9:H34)","v":0},0,0,0,0,0,0,0,0]
[]
[]
[]
["Berichterstatter:"]
[null,null,"Name"]
[]
[null,null,"Ort, Datum"]
[null,null,null,null,null,null,"Luftfahrt-Bundesamt, Stand: 18.01.2021"]
[null,null,"Unterschrift (nur bei LTO)"]